bitfinex/quotes_SOLUSD_20260211
["timestamp","ask_amount","ask_price","bid_price","bid_amount"]
[1770833770621,1.11785241,79.435,79.4,13.17066905]
[1770833770928,5.64761252,79.436,79.42,13.17066905]
[1770833771118,1e-08,79.436,79.43,13.17066905]
[1770833771314,50.29208934,79.536,79.43,13.17066905]
[1770833771315,1.14174027,79.502,79.435,12.58890917]
[1770833771515,1.14174027,79.489,79.435,12.58890917]
[1770833771708,1.14174027,79.489,79.46,13.17066905]
[1770833772112,1.14174027,79.533,79.48,13.17066905]
[1770833772327,1.14174027,79.529,79.48,13.17066905]
[1770833772523,1.14174027,79.499,79.437,17.64]
[1770833772732,1.14174027,79.489,79.45,13.17066905]
[1770833772927,1.14174027,79.479,79.44,13.17066905]
[1770833773124,1.14174027,79.479,79.43,13.17066905]
[1770833773334,1.14174027,79.469,79.421,12.59112829]
[1770833773512,1.14174027,79.459,79.42,13.17066905]
[1770833773928,1.14174027,79.471,79.418,12.59160391]
[1770833774131,1.14174027,79.483,79.45,13.17066905]
[1770833774309,1.14174027,79.483,79.418,176.28245484]
[1770833774310,1.14174027,79.499,79.46,13.17066905]
[1770833774514,1.14174027,79.498,79.448,52.5]
[1770833774817,1.14174027,79.489,79.46,13.17066905]
[1770833775130,1.14174027,79.489,79.45,13.17066905]
[1770833775334,1.14174027,79.489,79.448,52.5]
[1770833775528,4.61729252,79.515,79.45,13.17066905]
[1770833775730,1.14174027,79.525,79.452,4.61729252]
[1770833775936,1.14174027,79.509,79.47,13.17066905]
[1770833776440,13.17066905,79.5,79.449,44.05341791]
[1770833776633,1.14174027,79.489,79.449,12.58669083]
[1770833777222,1.14174027,79.524,79.48,13.17066905]
[1770833777437,1.14174027,79.519,79.48,13.17066905]
[1770833777818,1.14174027,79.509,79.455,52.54]
[1770833778029,1.14174027,79.509,79.47,13.17066905]
[1770833778447,1.14174027,79.522,79.48,13.17066905]
[1770833778739,1.14174027,79.534,79.51,13.17066905]
[1770833778940,1.14174027,79.534,79.5,13.17066905]
[1770833779134,1.14174027,79.529,79.49,13.17066905]
[1770833779537,1.14174027,79.527,79.481,12.58162328]
[1770833779736,1.14174027,79.527,79.49,13.17066905]
[1770833780218,1.14174027,79.527,79.481,12.58162328]
[1770833780418,13.17066905,79.53,79.49,13.17066905]
[1770833780614,1.14174027,79.528,79.49,13.17066905]
[1770833780817,1.14174027,79.528,79.481,44.03568148]
[1770833780818,1.14174027,79.519,79.474,12.58268033]
[1770833781036,1.14174027,79.519,79.49,13.17066905]
[1770833781226,1.14174027,79.519,79.48,13.17066905]
[1770833781432,1.14174027,79.507,79.463,12.58447327]
[1770833781820,1.14174027,79.499,79.46,13.17066905]
[1770833782019,44.02072746,79.508,79.441,31.46969192]
[1770833782020,1.14174027,79.489,79.45,13.17066905]
[1770833782738,1.14174027,79.479,79.446,65.087124]
[1770833782939,1.14174027,79.479,79.392,50.38237253]
[1770833782940,1.14174027,79.469,79.439,12.58819894]
[1770833783125,1.14174027,79.459,79.423,12.59081122]
[1770833783436,13.17066905,79.45,79.423,12.59081122]
[1770833783637,1.14174027,79.459,79.43,13.17066905]
[1770833783822,1.14174027,79.459,79.42,13.17066905]
[1770833784019,1.14174027,79.482,79.44,13.17066905]
[1770833784344,1.14174027,79.482,79.45,13.17066905]
[1770833785042,1.14174027,79.469,79.429,52.48]
[1770833785340,1.14174027,79.481,79.44,13.17066905]
[1770833785644,1.14174027,79.481,79.451,12.58637399]
[1770833785832,1.14174027,79.469,79.43,65.63066905]
[1770833786039,12.58164076,79.481,79.44,13.17066905]
[1770833786040,13.17066905,79.48,79.44,13.17066905]
[1770833786230,1.14174027,79.479,79.431,44.06340093]
[1770833786421,1.14174027,79.469,79.431,44.06340093]
[1770833786633,1.14174027,79.469,79.44,13.17066905]
[1770833787242,1.14174027,79.481,79.45,13.17066905]
[1770833787444,1.14174027,79.489,79.45,13.17066905]
[1770833787739,1.14174027,79.477,79.441,12.58795835]
[1770833787943,1.14174027,79.477,79.404,4.61729252]
[1770833787944,1.14174027,79.469,79.43,13.17066905]
[1770833788134,1.14174027,79.469,79.42,13.17066905]
[1770833788532,1.14174027,79.469,79.387,50.38574027]
[1770833788533,13.17066905,79.45,79.414,12.59221677]
[1770833788726,1.14174027,79.449,79.42,13.17066905]
[1770833789251,1.14174027,79.449,79.414,12.59221677]
[1770833789440,1.14174027,79.46,79.43,13.17066905]
[1770833789745,1.14174027,79.46,79.414,12.59221677]
[1770833789746,1.14174027,79.494,79.45,13.17066905]
[1770833789949,1.14174027,79.494,79.431,178.31543124]
[1770833789950,1.14174027,79.494,79.47,13.17066905]
[1770833790446,1.14174027,79.505,79.48,13.17066905]
[1770833791050,1.14174027,79.505,79.49,13.17066905]
[1770833791346,31.43451953,79.531,79.49,13.17066905]
[1770833791347,1.14174027,79.519,79.49,13.17066905]
[1770833791643,1.14174027,79.517,79.463,44.04565646]
[1770833791854,1.14174027,79.517,79.49,13.17066905]
[1770833792351,1.14174027,79.509,79.47,13.17066905]
[1770833792555,1.14174027,79.509,79.48,13.17066905]
[1770833792934,1.14174027,79.509,79.47,13.17066905]
[1770833793333,1.14174027,79.509,79.48,13.17066905]
[1770833793534,1.14174027,79.509,79.47,13.17066905]
[1770833793964,1.14174027,79.499,79.46,13.17066905]
[1770833794260,1.14174027,79.489,79.45,13.17066905]
[1770833794464,1.14174027,79.489,79.44,13.17066905]
[1770833794637,1.14174027,79.479,79.44,13.17066905]
[1770833794963,1.14174027,79.479,79.405,81.858825]
[1770833794964,1.14174027,79.469,79.43,13.17066905]
[1770833795257,1.14174027,79.459,79.421,52.36]
[1770833795434,1.14174027,79.459,79.44,13.17066905]
[1770833795636,1.14174027,79.459,79.421,52.36]
[1770833795954,1.14174027,79.459,79.422,44.06839414]
[1770833796136,1.14174027,79.459,79.43,13.17066905]
[1770833796333,1.14174027,79.449,79.411,12.59271385]
[1770833796537,1.14174027,79.429,79.401,12.59429981]
[1770833796775,1.14174027,79.429,79.401,44.08004935]
[1770833796959,1.14174027,79.457,79.42,13.17066905]
[1770833797276,13.17066905,79.44,79.402,52.36]
[1770833797563,12.58526517,79.458,79.401,44.08004935]
[1770833797564,1.14174027,79.429,79.401,12.59429981]
[1770833798153,1.14174027,79.429,79.395,12.59510809]
[1770833798960,1.14174027,79.429,79.4,13.17066905]
[1770833799263,1.14174027,79.409,79.365,12.6000126]
[1770833799438,1.14174027,79.399,79.365,12.6000126]
[1770833799640,1.14174027,79.389,79.36,12.80064875]
[1770833800046,1.14174027,79.379,79.36,0.2]
[1770833800247,1.04174027,79.369,79.33,13.17066905]
[1770833800445,1.04174027,79.397,79.36,13.17066905]
[1770833801235,1.04174027,79.395,79.36,13.17066905]
[1770833801655,13.17066905,79.39,79.35,13.17066905]
[1770833801849,1.04174027,79.389,79.35,13.17066905]
[1770833802450,46.1,79.412,79.36,13.17066905]
[1770833802451,1.04174027,79.399,79.36,13.17066905]
[1770833802860,12.59461706,79.399,79.36,13.17066905]
[1770833803062,1.04174027,79.398,79.36,13.17066905]
[1770833803264,1.04174027,79.408,79.37,13.17066905]
[1770833803563,1.04174027,79.408,79.38,13.17066905]
[1770833803765,1.04174027,79.399,79.36,13.17066905]
[1770833803966,1.04174027,79.399,79.37,13.17066905]
[1770833804158,1.04174027,79.399,79.36,13.17066905]
[1770833804760,1.04174027,79.398,79.37,13.17066905]
[1770833805264,13.63357163,79.417,79.38,13.17066905]
[1770833805565,13.63357163,79.417,79.365,52.26]
[1770833805566,1.04174027,79.416,79.39,13.17066905]
[1770833807068,1.04174027,79.427,79.4,13.17066905]
[1770833807270,1.04174027,79.436,79.4,13.17066905]
[1770833807462,1.04174027,79.429,79.391,44.08560163]
[1770833808054,1.04174027,79.429,79.4,13.17066905]
[1770833808249,1.04174027,79.449,79.41,13.17066905]
[1770833808470,1.04174027,79.449,79.42,13.17066905]
[1770833808854,1.04174027,79.468,79.431,12.58954312]
[1770833809182,1.04174027,79.459,79.421,12.59112829]
[1770833809350,1.04174027,79.459,79.43,13.17066905]
[1770833809674,1.04174027,79.449,79.409,52.18]
[1770833809870,4.61729252,79.466,79.39,13.17066905]
[1770833809871,1.04174027,79.429,79.39,13.17066905]
[1770833810166,1.04174027,79.449,79.42,13.17066905]
[1770833810560,1.04174027,79.449,79.43,13.17066905]
[1770833810963,1.04174027,79.449,79.42,13.06059972]
[1770833811467,1.04174027,79.47,79.44,13.06059972]
[1770833811672,1.04174027,79.488,79.45,13.06059972]
[1770833811872,1.04174027,79.488,79.433,52.18]
[1770833811873,1.04174027,79.479,79.44,13.06059972]
[1770833812258,1.04174027,79.479,79.433,52.18]
[1770833812452,1.04174027,79.469,79.433,52.18]
[1770833812676,1.04174027,79.469,79.43,13.06059972]
[1770833812876,1.04174027,79.479,79.44,13.06059972]
[1770833813069,1.04174027,79.488,79.45,13.06059972]
[1770833813772,1.04174027,79.487,79.45,13.06059972]
[1770833814073,1.04174027,79.469,79.431,12.58954312]
[1770833814655,1.04174027,79.469,79.44,13.06059972]
[1770833814856,1.04174027,79.469,79.431,44.06340093]
[1770833815356,1.04174027,79.479,79.431,44.06340093]
[1770833815561,1.04174027,79.479,79.44,13.06059972]
[1770833816161,1.04174027,79.479,79.431,44.06340093]
[1770833816657,1.04174027,79.469,79.431,44.06340093]
[1770833816863,1.04174027,79.494,79.46,13.06059972]
[1770833817162,1.04174027,79.494,79.471,12.58320645]
[1770833818163,31.44267165,79.51,79.445,52.12]
[1770833818164,1.04174027,79.479,79.445,52.12]
[1770833818479,1.04174027,79.469,79.446,12.58713096]
[1770833818858,1.04174027,79.469,79.442,12.5877392]
[1770833820061,1.04174027,79.49,79.45,13.06059972]
[1770833820578,31.44475172,79.505,79.442,12.5877392]
[1770833820579,1.04174027,79.501,79.46,13.06059972]
[1770833820776,50.281104,79.553,79.442,12.5877392]
[1770833820777,1.04174027,79.518,79.48,13.06059972]
[1770833821167,6.57556729,79.529,79.456,52.12]
[1770833821168,1.04174027,79.531,79.5,13.06059972]
[1770833821477,1.04174027,79.543,79.51,13.06059972]
[1770833821669,6.57238573,79.574,79.487,52.1]
[1770833821670,6.57238573,79.574,79.53,13.06059972]
[1770833821877,13.06059972,79.58,79.53,13.06059972]
[1770833822182,13.06059972,79.59,79.54,13.06059972]
[1770833822378,13.06059972,79.58,79.54,13.06059972]
[1770833822687,1e-08,79.571,79.551,0.64592942]
[1770833822893,1e-08,79.571,79.5,17.67789224]
[1770833822894,1e-08,79.571,79.54,13.06059972]
[1770833823190,1e-08,79.571,79.561,0.64592942]
[1770833823366,50.20842383,79.668,79.561,0.64592942]
[1770833823367,13.06059972,79.63,79.561,0.64592942]
[1770833823559,13.06059972,79.64,79.6,13.06059972]
[1770833823764,13.06059972,79.65,79.61,13.06059972]
[1770833824101,0.87490723,79.65,79.61,13.59863058]
[1770833824262,0.87490723,79.648,79.61,13.06059972]
[1770833824461,12.55508543,79.649,79.56,13.06059972]
[1770833824462,0.87490723,79.639,79.6,13.06059972]
[1770833824687,0.87490723,79.609,79.573,17.6]
[1770833824869,0.87490723,79.609,79.56,13.06059972]
[1770833825078,0.87490723,79.599,79.56,13.06059972]
[1770833825273,0.87490723,79.597,79.56,13.06059972]
[1770833825575,39.22,79.612,79.551,12.57055222]
[1770833825576,0.87490723,79.589,79.551,12.57055222]
[1770833825766,0.87490723,79.607,79.561,0.52250487]
[1770833825965,0.87490723,79.599,79.561,0.52250487]
[1770833826184,0.87490723,79.599,79.551,13.09305709]
[1770833826494,39.22,79.612,79.551,12.57055222]
[1770833826495,0.87490723,79.589,79.551,12.57055222]
[1770833826663,0.87490723,79.569,79.534,12.57318735]
[1770833827193,0.87490723,79.569,79.514,50.30526645]
[1770833827194,0.87490723,79.561,79.511,12.57687615]
[1770833827388,0.87490723,79.572,79.54,13.06059972]
[1770833827586,0.87490723,79.579,79.54,13.06059972]
[1770833827772,0.87490723,79.579,79.53,13.06059972]
[1770833827968,0.87490723,79.579,79.531,0.50733349]
[1770833828176,43.97647885,79.588,79.511,12.57687615]
[1770833828177,13.06059972,79.54,79.511,12.57687615]
[1770833828586,0.87490723,79.539,79.511,12.57687615]
[1770833829087,13.06059972,79.55,79.511,12.57687615]
[1770833829316,0.87490723,79.551,79.52,13.06059972]
[1770833829992,0.87490723,79.549,79.511,12.57687615]
[1770833830379,0.87490723,79.549,79.511,44.01906653]
[1770833830691,0.87490723,79.519,79.497,31.44746397]
[1770833830885,0.87490723,79.519,79.495,12.5794075]
[1770833831090,0.87490723,79.539,79.5,13.06059972]
[1770833831396,0.87490723,79.549,79.51,13.06059972]
[1770833831989,31.41893283,79.57,79.501,44.02460346]
[1770833831990,0.87490723,79.571,79.54,13.06059972]
[1770833832288,0.87490723,79.583,79.536,0.47802236]
[1770833832495,0.87490723,79.583,79.55,13.06059972]
[1770833832872,0.87490723,79.594,79.56,13.06059972]
[1770833833283,0.87490723,79.594,79.561,12.56897223]
[1770833833481,0.87490723,79.606,79.57,13.06059972]
[1770833833786,0.87490723,79.599,79.561,12.56897223]
[1770833833981,0.87490723,79.579,79.555,12.56979589]
[1770833834181,0.87490723,79.591,79.56,13.06059972]
[1770833834383,0.87490723,79.605,79.555,43.99459634]
[1770833834587,0.87490723,79.599,79.56,13.06059972]
[1770833834784,62.04086188,79.637,79.57,13.06059972]
[1770833834785,13.06059972,79.61,79.57,13.06059972]
[1770833834985,0.87490723,79.62,79.59,13.06059972]
[1770833835608,0.87490723,79.609,79.575,31.4168295]
[1770833835781,0.87490723,79.609,79.576,12.56660299]
[1770833835981,0.87490723,79.609,79.571,12.56738052]
[1770833836202,0.87490723,79.589,79.562,12.56881425]
[1770833836482,0.87490723,79.579,79.551,12.57055222]
[1770833836785,0.87490723,79.569,79.53,13.06059972]
[1770833836985,0.87490723,79.569,79.54,13.06059972]
[1770833837596,0.87490723,79.569,79.541,12.57213261]
[1770833837794,0.87490723,79.578,79.541,44.00246413]
[1770833838001,0.87490723,79.578,79.55,13.06059972]
[1770833838297,0.87490723,79.604,79.56,13.06059972]
[1770833838500,0.87490723,79.604,79.541,157.15165762]
[1770833838501,0.87490723,79.615,79.58,13.06059972]
[1770833838683,0.87490723,79.615,79.59,13.06059972]
[1770833838883,0.87490723,79.619,79.58,13.06059972]
[1770833839091,0.87490723,79.636,79.6,13.06059972]
[1770833839289,0.87490723,79.619,79.58,13.06059972]
[1770833839497,0.87490723,79.619,79.57,0.42987684]
[1770833839683,0.87490723,79.609,79.57,13.06059972]
[1770833839891,0.87490723,79.609,79.58,13.06059972]
[1770833840100,12.55981773,79.619,79.563,52.52331125]
[1770833840284,13.06059972,79.61,79.57,13.06059972]
[1770833840808,13.06059972,79.61,79.545,157.14375509]
[1770833840809,13.06059972,79.6,79.56,13.06059972]
[1770833841182,13.06059972,79.59,79.551,52.83543389]
[1770833841383,13.06059972,79.59,79.551,0.75543389]
[1770833841882,12.56139381,79.609,79.561,0.75543389]
[1770833842208,0.7142568,79.639,79.6,13.06059972]
[1770833842589,0.7142568,79.629,79.592,0.75543389]
[1770833843892,26.33451815,79.62,79.581,12.56581344]
[1770833844084,62.77286207,79.653,79.59,13.06059972]
[1770833844085,0.7142568,79.629,79.59,13.06059972]
[1770833844498,0.7142568,79.629,79.569,100.54145826]
[1770833844499,0.7142568,79.609,79.57,13.06059972]
[1770833844687,12.55823883,79.629,79.56,13.06059972]
[1770833844688,13.77485652,79.6,79.56,13.06059972]
[1770833844886,0.7142568,79.599,79.56,13.06059972]
[1770833845102,0.7142568,79.589,79.559,12.5692882]
[1770833845304,0.7142568,79.589,79.56,13.06059972]
[1770833846091,0.7142568,79.589,79.561,12.56897223]
[1770833846404,13.06059972,79.61,79.571,0.75543389]
[1770833846596,12.56085264,79.613,79.571,0.75543389]
[1770833846803,0.71674466,79.612,79.571,0.75543389]
[1770833847202,12.55981612,79.619,79.59,13.06059972]
[1770833847401,0.71674466,79.609,79.561,43.99140281]
[1770833847610,0.71674466,79.599,79.561,12.56897223]
[1770833847910,0.71674466,79.589,79.555,0.73316901]
[1770833848117,13.06059972,79.6,79.56,13.79376873]
[1770833848289,12.56297189,79.599,79.561,0.73316901]
[1770833848611,13.27971655,79.599,79.561,0.73316901]
[1770833848789,13.06059972,79.58,79.545,0.73316901]
[1770833848992,13.06059972,79.59,79.551,0.73316901]
[1770833849205,0.71674466,79.589,79.551,0.73316901]
[1770833849401,0.71674466,79.569,79.528,0.73316901]
[1770833849592,0.71674466,79.569,79.53,13.06059972]
[1770833849795,0.71674466,79.587,79.541,0.73316901]
[1770833850001,13.06059972,79.58,79.541,0.73316901]
[1770833850201,12.56612925,79.579,79.542,12.57197455]
[1770833850398,12.56612925,79.579,79.514,113.18761474]
[1770833850399,13.06059972,79.55,79.502,0.73316901]
[1770833850601,13.06059972,79.55,79.501,31.44614533]
[1770833850602,13.06059972,79.55,79.511,0.73316901]
[1770833850804,0.71674466,79.559,79.52,13.06059972]
[1770833851725,45.56,79.569,79.501,44.02460346]
[1770833851726,0.71674466,79.539,79.501,12.57845813]
[1770833852017,13.77734438,79.55,79.51,13.06059972]
[1770833852197,12.57086826,79.549,79.513,0.73316901]
[1770833852997,0.71674466,79.548,79.513,0.73316901]
[1770833854421,12.57118433,79.547,79.514,12.57640163]
[1770833854801,0.71674466,79.546,79.51,12.57694967]
[1770833855023,0.71674466,79.546,79.502,0.73316901]
[1770833855320,43.99914515,79.547,79.479,0.73316901]
[1770833855321,0.71674466,79.519,79.479,0.73316901]
[1770833855623,0.71674466,79.519,79.481,0.73316901]
[1770833855929,0.71674466,79.519,79.457,100.68231814]
[1770833855930,0.71674466,79.509,79.474,0.73316901]
[1770833856215,0.71674466,79.509,79.48,13.06059972]
[1770833856429,12.57615923,79.516,79.482,0.73316901]
[1770833856613,12.57382636,79.531,79.491,0.73316901]
[1770833856913,0.71674466,79.529,79.491,0.73316901]
[1770833857820,13.06059972,79.51,79.481,44.03568148]
[1770833858004,13.77734438,79.53,79.49,13.06059972]
[1770833858323,13.77734438,79.53,79.462,0.73316901]
[1770833858324,0.71674466,79.518,79.462,0.73316901]
[1770833858506,13.06059972,79.5,79.462,0.73316901]
[1770833858705,13.77734438,79.5,79.462,0.73316901]
[1770833859219,13.06059972,79.5,79.462,0.73316901]
[1770833860021,0.71674466,79.499,79.462,0.73316901]
[1770833860422,0.71674466,79.499,79.461,44.04676507]
[1770833860423,12.5789328,79.498,79.463,13.31764228]
[1770833860921,12.5789328,79.498,79.453,0.73316901]
[1770833860922,13.06059972,79.49,79.453,0.73316901]
[1770833861106,0.71674466,79.489,79.454,12.58589875]
[1770833861308,13.06059972,79.48,79.454,12.58589875]
[1770833861503,0.71674466,79.489,79.454,12.58589875]
[1770833861710,0.71674466,79.489,79.454,13.31906776]
[1770833862024,0.71674466,79.497,79.455,0.73316901]
[1770833862224,0.71674466,79.489,79.455,0.73316901]
[1770833862615,0.71674466,79.479,79.44,0.2]
[1770833862922,0.71674466,79.479,79.44,13.26059972]
[1770833863310,0.71674466,79.479,79.443,12.58764145]
[1770833863924,13.06059972,79.47,79.44,0.2]
[1770833864123,0.71674466,79.469,79.44,0.2]
[1770833864720,13.30042614,79.468,79.44,0.2]
[1770833865823,0.71674466,79.467,79.44,0.2]
[1770833866838,12.58399818,79.466,79.44,0.2]
[1770833867136,31.45230695,79.486,79.441,0.73316901]
[1770833867427,0.71674466,79.469,79.441,12.58795835]
[1770833867831,0.71674466,79.481,79.442,0.73316901]
[1770833868020,0.71674466,79.481,79.451,0.73316901]
[1770833868529,45.46,79.487,79.451,0.73316901]
[1770833868908,12.58083184,79.486,79.452,13.31938458]
[1770833869520,12.58083184,79.486,79.453,0.73316901]
[1770833870335,0.71674466,79.5,79.47,13.79376873]
[1770833870526,0.67061383,79.489,79.452,44.05175451]
[1770833871420,0.67061383,79.489,79.453,0.68802479]
[1770833871930,12.57919988,79.497,79.46,13.74862451]
[1770833872122,13.06059972,79.49,79.452,44.7397793]
[1770833872308,0.67061383,79.489,79.452,44.7397793]
[1770833872508,0.67061383,79.489,79.453,0.68802479]
[1770833873139,0.67061383,79.489,79.454,13.27392354]
[1770833873335,12.58051529,79.488,79.454,13.27392354]
[1770833873524,13.25112912,79.488,79.454,13.27392354]
[1770833873716,0.67061383,79.487,79.454,13.27392354]
[1770833874829,0.67061383,79.502,79.47,13.05276509]
[1770833875034,13.05276509,79.5,79.461,0.68802479]
[1770833875243,13.05276509,79.5,79.46,13.05276509]
[1770833875244,0.67061383,79.498,79.462,13.27265643]
[1770833875546,0.67061383,79.498,79.462,44.73423554]
[1770833876421,0.67061383,79.498,79.463,0.68802479]
[1770833877125,45.5,79.501,79.472,12.58304811]
[1770833877837,0.67061383,79.479,79.441,0.68802479]
[1770833878030,0.67061383,79.492,79.461,0.68802479]
[1770833878830,0.67061383,79.495,79.461,0.68802479]
[1770833879329,12.57956575,79.494,79.462,13.27265643]
[1770833880121,45.5,79.502,79.471,0.68802479]
[1770833880332,0.67061383,79.499,79.462,44.04621075]
[1770833880528,0.67061383,79.499,79.463,0.68802479]
[1770833880735,0.67061383,79.499,79.47,13.05276509]
[1770833880937,0.67061383,79.499,79.463,0.68802479]
[1770833881328,0.67061383,79.499,79.464,12.5843149]
[1770833881537,0.67061383,79.497,79.464,12.5843149]
[1770833882132,0.67061383,79.497,79.465,0.68802479]
[1770833882544,0.67061383,79.479,79.441,12.58795835]
[1770833882745,0.67061383,79.469,79.441,12.58795835]
[1770833884238,0.67061383,79.479,79.442,0.68802479]
[1770833884441,0.67061383,79.459,79.44,0.2]
[1770833884630,0.67061383,79.459,79.373,50.39445736]
[1770833884631,0.67061383,79.449,79.4,13.74078988]
[1770833884826,4.61729252,79.479,79.401,12.59429981]
[1770833884827,0.67061383,79.439,79.401,12.59429981]
[1770833885021,0.67061383,79.439,79.4,13.74078988]
[1770833885222,58.55276509,79.44,79.391,12.59588618]
[1770833885223,0.67061383,79.429,79.391,12.59588618]
[1770833885529,0.67061383,79.439,79.401,0.68802479]
[1770833885738,0.67061383,79.429,79.391,51.68]
[1770833885938,0.67061383,79.429,79.392,12.59572752]
[1770833886131,0.67061383,79.429,79.39,25.64880993]
[1770833886428,0.67061383,79.427,79.391,0.68802479]
[1770833886734,0.67061383,79.437,79.401,0.68802479]
[1770833886934,12.58843374,79.438,79.385,12.59669168]
[1770833886935,0.67061383,79.419,79.385,12.59669168]
[1770833887138,0.67061383,79.419,79.386,0.68802479]
[1770833887851,12.59160391,79.418,79.387,13.28454563]
[1770833888029,12.59160391,79.418,79.388,0.68802479]
[1770833888229,0.67061383,79.417,79.388,0.68802479]
[1770833889145,13.05276509,79.42,79.388,0.68802479]
[1770833889527,12.59102012,79.422,79.376,0.68802479]
[1770833889732,13.05276509,79.43,79.391,0.68802479]
[1770833889946,12.58986012,79.429,79.393,0.68802479]
[1770833890250,58.73990266,79.433,79.393,0.68802479]
[1770833890443,13.05276509,79.43,79.393,0.68802479]
[1770833890644,58.06928883,79.433,79.393,0.68802479]
[1770833891443,0.67061383,79.429,79.393,0.68802479]
[1770833891649,13.05276509,79.43,79.393,0.68802479]
[1770833891850,0.67061383,79.429,79.393,0.68802479]
[1770833892045,13.05276509,79.43,79.395,0.68802479]
[1770833892638,13.05276509,79.42,79.395,0.68802479]
[1770833893245,13.05276509,79.42,79.387,12.5964575]
[1770833893441,0.67061383,79.419,79.387,13.28448229]
[1770833893945,0.67061383,79.419,79.387,0.68802479]
[1770833894159,0.67061383,79.419,79.37,44.75048656]
[1770833894160,13.05276509,79.45,79.401,0.68802479]
[1770833894528,13.05276509,79.46,79.411,0.68802479]
[1770833894731,13.05276509,79.45,79.411,0.68802479]
[1770833895151,45.54,79.465,79.421,0.68802479]
[1770833895338,13.05276509,79.47,79.421,0.68802479]
[1770833895651,13.05276509,79.46,79.421,0.68802479]
[1770833896252,0.67061383,79.459,79.423,0.68802479]
[1770833897254,13.05276509,79.45,79.423,0.68802479]
[1770833897442,0.67061383,79.451,79.423,0.68802479]
[1770833897842,13.72337892,79.45,79.423,0.68802479]
[1770833898041,0.67061383,79.449,79.422,12.59096975]
[1770833898251,0.67061383,79.447,79.417,12.59164426]
[1770833898658,0.67061383,79.456,79.421,0.68802479]
[1770833898958,0.67061383,79.455,79.421,0.68802479]
[1770833899553,0.67061383,79.465,79.421,0.68802479]
[1770833899739,0.67061383,79.479,79.431,0.68802479]
[1770833900336,0.60666262,79.488,79.441,0.63771883]
[1770833900532,13.05276509,79.48,79.441,0.63771883]
[1770833900748,0.60666262,79.469,79.441,0.63771883]
[1770833901156,0.60666262,79.484,79.441,0.63771883]
[1770833901376,0.60666262,79.487,79.441,0.63771883]
[1770833901668,0.60666262,79.479,79.441,0.63771883]
[1770833902370,12.58127099,79.484,79.442,44.05729966]
[1770833902667,0.60666262,79.509,79.461,0.63771883]
[1770833902841,0.60666262,79.499,79.461,0.63771883]
[1770833903740,0.60666262,79.516,79.481,0.63771883]
[1770833903945,0.60666262,79.509,79.476,0.63771883]
[1770833904547,0.60666262,79.507,79.477,12.5822565]
[1770833904947,0.60666262,79.507,79.478,0.63771883]
[1770833905564,0.60666262,79.507,79.477,12.5822565]
[1770833905565,0.60666262,79.516,79.481,0.63771883]
[1770833905766,0.1,79.52,79.491,0.63771883]
[1770833906583,0.1,79.52,79.493,0.63771883]
[1770833906768,0.60666262,79.544,79.511,0.63771883]
[1770833907283,12.5718165,79.543,79.511,0.63771883]
[1770833907571,0.60666262,79.544,79.511,0.63771883]
[1770833907949,0.59683354,79.539,79.506,51.6]
[1770833908253,0.59683354,79.539,79.507,0.62323299]
[1770833908569,12.5726068,79.538,79.507,13.20072869]
[1770833908876,0.59683354,79.529,79.506,51.6]
[1770833909164,45.42,79.558,79.511,0.62323299]
[1770833909165,0.59683354,79.543,79.511,0.62323299]
[1770833909363,0.59683354,79.541,79.511,0.62323299]
[1770833909749,0.59683354,79.539,79.506,64.17755993]
[1770833909944,12.57140025,79.546,79.51,13.05276509]
[1770833910160,12.57140025,79.546,79.511,0.62323299]
[1770833910366,12.57140025,79.546,79.506,95.62172766]
[1770833910367,0.59683354,79.539,79.506,64.17755993]
[1770833910567,0.59683354,79.548,79.511,0.62323299]
[1770833910765,12.56976218,79.556,79.521,0.62323299]
[1770833910970,0.59683354,79.555,79.521,0.62323299]
[1770833911166,0.59683354,79.555,79.53,13.05276509]
[1770833911347,12.56878428,79.563,79.531,0.62323299]
[1770833911849,0.59683354,79.562,79.531,0.62323299]
[1770833912458,45.4,79.582,79.531,0.62323299]
[1770833912459,0.59683354,79.572,79.531,0.62323299]
[1770833912658,0.59683354,79.572,79.527,51.58]
[1770833912659,0.59683354,79.581,79.55,13.67599808]
[1770833913059,12.56597134,79.58,79.55,0.62323299]
[1770833913262,0.59683354,79.579,79.542,12.57197455]
[1770833913665,0.59683354,79.579,79.527,51.58]
[1770833913666,0.59683354,79.559,79.523,0.62323299]
[1770833913873,0.59683354,79.559,79.524,0.62323299]
[1770833914648,43.99306166,79.558,79.524,0.62323299]
[1770833914962,0.59683354,79.549,79.52,12.57545271]
[1770833915156,0.59683354,79.539,79.505,0.62323299]
[1770833915468,43.99306166,79.558,79.486,0.62323299]
[1770833915469,0.59683354,79.519,79.486,0.62323299]
[1770833915648,0.59683354,79.509,79.471,0.62323299]
[1770833916260,13.64959863,79.52,79.471,0.62323299]
[1770833916469,0.59683354,79.549,79.511,0.62323299]
[1770833916775,12.57102309,79.549,79.513,0.62323299]
[1770833916983,12.57102309,79.549,79.498,51.56]
[1770833916984,0.59683354,79.539,79.507,12.57746081]
[1770833917275,0.59683354,79.539,79.508,0.62323299]
[1770833917657,0.59683354,79.539,79.498,51.56]